fUST/lending_fUST_20241127
["ID","MTS","AMOUNT","RATE_DAILY","PERIOD"]
[343506545,1732696253722,-1601.72,0.00027397,3]
[343506546,1732696253731,-500.0,0.00027397,3]
[343506547,1732696253740,-500.0,0.00027397,3]
[343506548,1732696253750,-1601.72,0.00027397,3]
[343506549,1732696253762,-500.0,0.00027397,3]
[343506550,1732696253771,-500.0,0.00027397,3]
[343506551,1732696253780,-500.0,0.00027397,3]
[343506552,1732696253789,-1601.72,0.00027397,3]
[343506553,1732696253799,-507.06433293,0.00027397,3]
[343506554,1732696253808,-500.0,0.00027397,3]
[343506555,1732696253817,-1601.72,0.00027397,3]
[343506556,1732696253826,-500.0,0.00027397,3]
[343506557,1732696253837,-1601.72,0.00027397,3]
[343506558,1732696253846,-500.0,0.00027397,3]
[343506559,1732696253855,-500.0,0.00027397,3]
[343506560,1732696253865,-1601.72,0.00027397,3]
[343506561,1732696253874,-500.0,0.00027397,3]
[343506562,1732696253883,-500.0,0.00027397,3]
[343506563,1732696253893,-1601.72,0.00027397,3]
[343506564,1732696253903,-500.0,0.00027397,3]
[343506565,1732696253912,-500.0,0.00027397,3]
[343506566,1732696253922,-1601.72,0.00027397,3]
[343506567,1732696253931,-500.0,0.00027397,3]
[343506568,1732696253941,-500.0,0.00027397,3]
[343506569,1732696253951,-1601.72,0.00027397,3]
[343506570,1732696253960,-500.0,0.00027397,3]
[343506571,1732696253969,-500.0,0.00027397,3]
[343506572,1732696253979,-420.0,0.00027498,2]
[343506573,1732696253989,-298.448932,0.000275,14]
[343506574,1732696253998,-1852.70555957,0.00027688,2]
[343506575,1732696254007,-151.0,0.000278,19]
[343506576,1732696254016,-151.0,0.00027899,7]
[343506577,1732696254025,-151.0,0.00027899,7]
[343506578,1732696254034,-273.057297,0.00027899,7]
[343506579,1732696254044,-273.057297,0.00027899,7]
[343506580,1732696254053,-500.0,0.00027899,3]
[343506581,1732696254062,-500.0,0.00027899,3]
[343506582,1732696254072,-615.68030489,0.00027899,3]
[343506583,1732696254086,-500.0,0.00027899,3]
[343506584,1732696254096,-500.0,0.00027899,3]
[343506585,1732696254105,-491.62,0.00027899,3]
[343506586,1732696254114,-503.45166271,0.00027899,3]
[343506587,1732696254123,-1000.0,0.00027921,5]
[343506588,1732696254133,-501.7160403,0.00027921,5]
[343506589,1732696254142,-1000.0,0.00027921,5]
[343506590,1732696254152,-500.58232513,0.00027973,5]
[343506591,1732696254162,-500.78256721,0.00027973,5]
[343506592,1732696254171,-160.19749757,0.00027973,2]
[343506593,1732696254180,-578.43230294,0.00027973,5]
[343506594,1732696254241,-500.0,0.00027973,5]
[343506595,1732696254251,-500.0,0.00027973,5]
[343506596,1732696254260,-266.679772,0.00027977,2]
[343506597,1732696254270,-183.844913,0.00027977,2]
[343506598,1732696254279,-160.0,0.00027994,3]
[343506599,1732696254289,-150.01,0.00027998,2]
[343506600,1732696254298,-3007.24807704,0.00027998,2]
[343506601,1732696254308,-3754.78630758,0.00028,2]
[343506602,1732696254317,-133547.77523692,0.00028,30]
[343506603,1732696254325,-250.0,0.00028,120]
[343506604,1732696254335,-31323.28033342,0.00028,2]
[343506605,1732696254344,-152.307609,0.00028,7]
[343506606,1732696254353,-151.0,0.00028,7]
[343506607,1732696254362,-273.057297,0.00028,7]
[343506608,1732696254371,-273.057297,0.00028,7]
[343506609,1732696254380,-480.56271,0.00028,7]
[343506610,1732696254389,-480.56271,0.00028,7]
[343506611,1732696254399,-151.0,0.00028,7]
[343506612,1732696254408,-151.0,0.00028,7]
[343506613,1732696254417,-151.0,0.00028,7]
[343506614,1732696254426,-186.0,0.00028,2]
[343506615,1732696254435,-152.647061,0.00028,7]
[343506616,1732696254444,-151.0,0.00028,7]
[343506617,1732696254453,-151.0,0.00028,7]
[343506618,1732696254462,-151.0,0.00028,7]
[343506619,1732696254471,-151.0,0.00028,7]
[343506620,1732696254480,-151.0,0.00028,7]
[343506621,1732696254490,-161.814707,0.00028,7]
[343506622,1732696254499,-161.814707,0.00028,7]
[343506623,1732696254508,-151.0,0.00028,7]
[343506624,1732696254517,-1533.659596,0.00028,7]
[343506625,1732696254526,-1533.659596,0.00028,7]
[343506626,1732696254534,-151.0,0.00028,7]
[343506627,1732696254543,-3162.451046,0.00028,7]
[343506628,1732696254552,-3162.451046,0.00028,7]
[343506629,1732696254561,-151.0,0.00028,7]
[343506630,1732696254570,-151.0,0.00028,7]
[343506631,1732696254579,-2595.421533,0.00028,7]
[343506632,1732696254589,-2595.421533,0.00028,7]
[343506633,1732696254598,-179.654744,0.00028,2]
[343506634,1732696254607,-603.880715,0.00028,7]
[343506635,1732696254616,-603.880715,0.00028,7]
[343506636,1732696254624,-566.207121,0.00028,7]
[343506637,1732696254633,-566.207121,0.00028,7]
[343506638,1732696254642,-427.406251,0.00028,7]
[343506639,1732696254651,-960.932229,0.00028,7]
[343506640,1732696254661,-427.406251,0.00028,7]
[343506641,1732696254670,-960.932229,0.00028,7]
[343506642,1732696254679,-1000.0,0.00028,2]
[343506643,1732696254689,-391.0,0.0002801,22]
[343506644,1732696254698,-250.0,0.00028179,2]
[343506645,1732696254708,-150.0,0.00028433,2]
[343506646,1732696254717,-531.0,0.00028433,2]
[343506647,1732696254727,-1104.0,0.00028433,2]
[343506648,1732696254736,-2377.0,0.00028433,2]
[343506649,1732696254744,-1136.75457691,0.00028442,2]
[343506650,1732696254753,-183.844913,0.00028443,2]
[343506651,1732696254762,-1852.70555957,0.00028495,2]
[343506652,1732696254771,-196.428145,0.00028498,2]
[343506653,1732696254780,-266.679773,0.00028498,2]
[343506654,1732696254790,-270.266982,0.00028498,2]
[343506655,1732696254799,-574.317336,0.00028498,2]
[343506656,1732696254808,-171.994268,0.00028498,2]
[343506657,1732696254817,-1000.0,0.00028521,5]
[343506658,1732696254826,-1000.0,0.00028521,5]
[343506659,1732696254837,-500.0,0.00028767,2]
[343506660,1732696254848,-196.428145,0.00028855,2]
[343506661,1732696254857,-266.679773,0.00028855,2]
[343506662,1732696254866,-270.266982,0.00028855,2]
[343506663,1732696254875,-574.317336,0.00028855,2]
[343506664,1732696254885,-183.844913,0.00028909,2]
[343506665,1732696254894,-1506.52360858,0.00028922,5]
[343506666,1732696254903,-150.0,0.00028964,2]
[343506667,1732696254912,-2553.88218778,0.00029,5]
[343506668,1732696254922,-31470.81808663,0.00029,7]
[343506669,1732696254931,-151.0,0.00029175,6]
[343506670,1732696254941,-196.428145,0.00029211,2]
[343506671,1732696254951,-266.679773,0.00029211,2]
[343506672,1732696254960,-270.266982,0.00029211,2]
[343506673,1732696254970,-574.317336,0.00029211,2]
[343506674,1732696254979,-171.994268,0.00029211,2]
[343506675,1732696254988,-1852.70555957,0.00029302,2]
[343506676,1732696254997,-587.0,0.00029339,2]
[343506677,1732696255007,-183.844913,0.00029376,2]
[343506678,1732696255016,-4336.79605472,0.000294,7]
[343506679,1732696255070,-7443.98734858,0.000294,7]
[343506680,1732696255081,-160.0,0.00029493,4]
[343506681,1732696255090,-31130.19302169,0.000295,5]
[343506682,1732696255099,-3000.0,0.000295,2]
[343506683,1732696255107,-1136.75457691,0.000295,2]
[343506684,1732696255117,-3000.0,0.0002951,2]
[343506685,1732696255127,-3000.0,0.0002952,2]
[343506686,1732696255136,-151.0,0.00029522,7]
[343506687,1732696255146,-1247.92836528,0.00029522,5]
[343506688,1732696255158,-3000.0,0.0002953,2]
[343506689,1732696255167,-3000.0,0.0002954,2]
[343506690,1732696255175,-3000.0,0.0002955,2]
[343506691,1732696255184,-3000.0,0.0002956,2]
[343506692,1732696255195,-196.428145,0.00029567,2]
[343506693,1732696255203,-266.679773,0.00029567,2]
[343506694,1732696255212,-270.266982,0.00029567,2]
[343506695,1732696255222,-574.317336,0.00029567,2]
[343506696,1732696255232,-3000.0,0.0002957,2]
[343506697,1732696255242,-3000.0,0.0002958,2]
[343506698,1732696255250,-3000.0,0.0002959,2]
[343506699,1732696255259,-161.32101328,0.00029599,10]
[343506700,1732696255268,-1000.0,0.00029599,4]
[343506701,1732696255277,-1000.0,0.00029599,11]
[343506702,1732696255286,-907.88227669,0.000296,2]
[343506703,1732696255295,-2756540.37,0.000296,15]
[343506704,1732696255304,-3000.0,0.000296,2]
[343506705,1732696255314,-151.0,0.000296,7]
[343506706,1732696255323,-151.0,0.000296,7]
[343506707,1732696255332,-163.17657,0.000296,7]
[343506708,1732696255341,-151.0,0.000296,7]
[343506709,1732696255351,-151.0,0.000296,7]
[343506710,1732696255360,-151.0,0.000296,7]
[343506711,1732696255369,-151.0,0.000296,7]
[343506712,1732696255378,-829.730138,0.000296,7]
[343506713,1732696255387,-151.0,0.000296,7]
[343506714,1732696255396,-829.730138,0.000296,7]
[343506715,1732696255405,-151.0,0.000296,7]
[343506716,1732696255414,-151.0,0.000296,7]
[343506717,1732696255423,-158.219372,0.000296,7]
[343506718,1732696255432,-151.0,0.000296,7]
[343506719,1732696255451,-151.0,0.000296,7]
[343506720,1732696255469,-166.689308,0.000296,7]
[343506721,1732696255487,-646.144266,0.000296,7]
[343506722,1732696255506,-646.144266,0.000296,7]
[343506723,1732696255526,-273.057297,0.000296,7]
[343506724,1732696255543,-273.057297,0.000296,7]
[343506725,1732696255562,-480.56271,0.000296,7]
[343506726,1732696255576,-480.56271,0.000296,7]
[343506727,1732696255595,-151.0,0.000296,7]
[343506728,1732696255613,-151.0,0.000296,7]
[343506729,1732696255630,-151.0,0.000296,7]
[343506730,1732696255643,-151.0,0.000296,7]
[343506731,1732696255663,-151.0,0.000296,7]
[343506732,1732696255677,-151.0,0.000296,7]
[343506733,1732696255692,-151.0,0.000296,7]
[343506734,1732696255706,-161.814707,0.000296,7]
[343506735,1732696255720,-161.814707,0.000296,7]
[343506736,1732696255735,-151.0,0.000296,7]
[343506737,1732696255749,-1533.659596,0.000296,7]
[343506738,1732696255763,-1533.659596,0.000296,7]
[343506739,1732696255776,-151.0,0.000296,7]
[343506740,1732696255791,-3162.451046,0.000296,7]
[343506741,1732696255805,-3162.451046,0.000296,7]
[343506742,1732696255818,-151.0,0.000296,7]
[343506743,1732696255834,-151.0,0.000296,7]
[343506744,1732696255849,-2595.421533,0.000296,7]
[343506745,1732696255863,-2595.421533,0.000296,7]
[343506746,1732696255877,-173.14,0.000296,31]
[343506747,1732696255891,-173.14,0.000296,31]
[343506748,1732696255905,-173.14,0.000296,31]
[343506749,1732696255914,-173.14,0.000296,31]
[343506750,1732696255923,-173.14,0.000296,31]
[343506751,1732696255932,-173.14,0.000296,31]
[343506752,1732696255941,-173.14,0.000296,31]
[343506753,1732696255951,-173.14,0.000296,31]
[343506754,1732696255960,-173.14,0.000296,31]
[343506755,1732696255970,-173.14,0.000296,31]
[343506756,1732696255979,-173.14,0.000296,31]
[343506757,1732696255988,-173.14,0.000296,31]
[343506758,1732696256098,-151.0,0.000296,7]
[343506759,1732696256112,-151.0,0.000296,7]
[343506760,1732696256121,-603.880715,0.000296,7]
[343506761,1732696256131,-603.880715,0.000296,7]
[343506762,1732696256140,-566.207121,0.000296,7]
[343506763,1732696256150,-566.207121,0.000296,7]
[343506764,1732696256161,-427.406251,0.000296,7]
[343506765,1732696256170,-960.932229,0.000296,7]
[343506766,1732696256180,-427.406251,0.000296,7]
[343506767,1732696256188,-960.932229,0.000296,7]
[343506768,1732696256198,-3000.0,0.0002961,2]
[343506769,1732696256207,-32792.29933288,0.0002961,2]
[343506770,1732696256217,-3000.0,0.0002962,2]
[343506771,1732696256227,-3000.0,0.0002963,2]
[343506772,1732696256236,-7000.67349825,0.00029638,7]
[343506773,1732696256245,-3000.0,0.0002964,2]
[343506774,1732696256254,-3000.0,0.0002965,2]
[343506775,1732696256263,-3000.0,0.0002966,2]
[343506776,1732696256272,-3000.0,0.0002967,2]
[343506777,1732696256281,-600.0,0.00029675,2]
[343506778,1732696256290,-3000.0,0.0002968,2]
[343506779,1732696256299,-3000.0,0.0002969,2]
[343506780,1732696256308,-3000.0,0.000297,2]
[343506781,1732696256318,-3000.0,0.0002971,2]
[343506782,1732696256326,-3000.0,0.0002972,2]
[343506783,1732696256339,-3187.609737,0.0002973,2]
[343506784,1732696256353,-318.70727005,0.00029752,2]
[343506785,1732696256362,-310.43548405,0.00029757,2]
[343506786,1732696256371,-151.0,0.00029869,7]
[343506787,1732696256380,-196.428145,0.00029923,2]
[343506788,1732696256389,-266.679773,0.00029923,2]
[343506789,1732696256399,-270.266982,0.00029923,2]
[343506790,1732696256408,-574.317336,0.00029923,2]
[343506791,1732696256417,-171.994268,0.00029923,2]
[343506792,1732696256426,-159.1349959,0.00029934,8]
[343506793,1732696256436,-756.7433399,0.00029965,8]
[343506794,1732696256445,-600.0,0.00029984,2]
[343506795,1732696256454,-34715.48859744,0.0002999,3]
[343506796,1732696256463,-364.22729953,0.0003,30]
[343506797,1732696256472,-4425.42119932,0.0003,120]
[343506798,1732696256481,-250.0,0.0003,31]
[343506799,1732696256491,-251.20373128,0.0003,30]
[343506800,1732696256500,-64000.0,0.0003,15]
[343506801,1732696256509,-592.167,0.0003,120]
[343506802,1732696256518,-500.0,0.0003,120]
[343506803,1732696256529,-7970.97234951,0.0003,10]
[343506804,1732696256539,-1500.0,0.0003,2]
[343506805,1732696256548,-1023.82954509,0.0003,7]
[343506806,1732696256558,-988.58964191,0.0003,2]
[343506807,1732696256567,-159.0,0.0003,2]
[343506808,1732696256578,-3813.0,0.0003,3]
[343506809,1732696256593,-598.0,0.0003,2]
[343506810,1732696256602,-596.0,0.0003,2]
[343506811,1732696256611,-596.0,0.0003,2]
[343506812,1732696256619,-596.0,0.0003,2]
[343506813,1732696256628,-9873.0,0.0003,2]
[343506814,1732696256638,-9869.0,0.0003,2]
[343506815,1732696256647,-9869.0,0.0003,2]
[343506816,1732696256657,-9869.0,0.0003,2]
[343506817,1732696256666,-9869.0,0.0003,2]
[343506818,1732696256676,-9869.0,0.0003,2]
[343506819,1732696256686,-154.1565,0.0003,2]
[343506820,1732696256696,-646.144266,0.0003,7]
[343506821,1732696256706,-646.144266,0.0003,7]
[343506822,1732696256715,-273.057297,0.0003,7]
[343506823,1732696256726,-273.057297,0.0003,7]
[343506824,1732696256735,-480.56271,0.0003,7]
[343506825,1732696256745,-480.56271,0.0003,7]
[343506826,1732696256755,-151.0,0.0003,7]
[343506827,1732696256764,-151.0,0.0003,7]
[343506828,1732696256775,-154.288495,0.0003,7]
[343506829,1732696256784,-171.271666,0.0003,7]
[343506830,1732696256793,-151.0,0.0003,7]
[343506831,1732696256802,-151.0,0.0003,7]
[343506832,1732696256812,-161.814707,0.0003,7]
[343506833,1732696256821,-161.814707,0.0003,7]
[343506834,1732696256830,-151.0,0.0003,7]
[343506835,1732696256842,-246.614876,0.0003,7]
[343506836,1732696256851,-1533.659596,0.0003,7]
[343506837,1732696256860,-1533.659596,0.0003,7]
[343506838,1732696256869,-151.0,0.0003,7]
[343506839,1732696256878,-3162.451046,0.0003,7]
[343506840,1732696256887,-3162.451046,0.0003,7]
[343506841,1732696256896,-151.0,0.0003,7]
[343506842,1732696256905,-151.0,0.0003,7]
[343506843,1732696256915,-151.0,0.0003,7]
[343506844,1732696256924,-151.0,0.0003,7]
[343506845,1732696256933,-151.813813,0.0003,7]
[343506846,1732696256943,-151.0,0.0003,7]
[343506847,1732696256952,-2595.421533,0.0003,7]
[343506848,1732696256961,-2595.421533,0.0003,7]
[343506849,1732696256970,-151.0,0.0003,7]
[343506850,1732696256980,-249.217244,0.0003,7]
[343506851,1732696256990,-603.880715,0.0003,7]
[343506852,1732696256999,-603.880715,0.0003,7]
[343506853,1732696257008,-566.207121,0.0003,7]
[343506854,1732696257017,-566.207121,0.0003,7]
[343506855,1732696257027,-427.406251,0.0003,7]
[343506856,1732696257036,-960.932229,0.0003,7]
[343506857,1732696257045,-427.406251,0.0003,7]
[343506858,1732696257054,-960.932229,0.0003,7]
[343506859,1732696257063,-226.0,0.0003,2]
[343506860,1732696257073,-1852.70555957,0.00030108,2]
[343506861,1732696257082,-500.0,0.00030136,4]
[343506862,1732696257092,-3308.838159,0.00030137,120]
[343506863,1732696257102,-254.58160536,0.00030137,2]
[343506864,1732696257111,-151.0,0.00030216,7]
[343506865,1732696257120,-587.0,0.00030248,2]
[343506866,1732696257129,-908.09200788,0.00030264,10]
[343506867,1732696257138,-606.83576697,0.00030293,2]
[343506868,1732696257148,-3200.0,0.00030482,2]
[343506869,1732696257158,-500.0,0.00030482,7]
[343506870,1732696257167,-151.12,0.00030482,7]
[343506871,1732696257176,-151.0,0.00030563,7]
[343506872,1732696257186,-908.09200788,0.00030564,10]
[343506873,1732696257195,-193175.05370517,0.00030666,2]
[343506874,1732696259956,-277.59,0.00027387,10]
[343506875,1732696259966,-222.41,0.00027397,3]
[343506876,1732696260001,155.0,0.00022,2]
[343506890,1732696346778,154.0,0.00022,2]
[343506891,1732696435035,5000.0,0.00022001,2]
[343506892,1732696451390,4117.70660151,0.00022001,2]
[343506894,1732696744848,4439.312893,0.00021736,2]
[343506895,1732696764410,200000.0,0.0001,2]
[343506896,1732696846272,265.0,0.00022,2]
[343506897,1732696847294,168.0,0.00022,2]
[343506898,1732696849965,161.0,0.00022,2]
[343506899,1732696864153,239.5796844,0.00021576,2]
[343506900,1732696932674,337.479308,0.00013973,2]
[343506901,1732696933074,337.479308,0.00020447,2]
[343506902,1732696952352,165.742425,0.00021307,2]
[343506903,1732696980092,8486.9010711,0.00021754,2]
[343506948,1732697083175,8516.1277529,0.00021576,2]
[343506949,1732697092662,11558.7655852,0.00021576,2]
[343506953,1732697110967,859.70398669,0.00022001,2]
[343506955,1732697133875,26132.672462,0.00021599,2]
[343506956,1732697145185,250.0,0.00021581,2]
[343506958,1732697209830,998.25192,0.00021581,2]
[343506959,1732697227464,3456.3393437,0.000216,2]
[343506960,1732697239168,-155.0,0.00022192,2]
[343506961,1732697239191,-265.0,0.00022192,2]
[343506962,1732697239213,-1360.41373724,0.00022421,2]
[343506963,1732697243295,2771.3920218,0.00021581,2]
[343506964,1732697286982,2757.1998197,0.00021644,2]
[343506965,1732697292604,248.3030805,0.00021773,2]
[343506966,1732697332590,1000.0,0.00031068,120]
[343506967,1732697333244,173.5,0.00031068,120]
[343506969,1732697360104,-3078.89915576,0.00022421,2]
[343506970,1732697360128,-334.5081353,0.00022436,2]
[343506971,1732697360164,-300.0,0.0002258,2]
[343506972,1732697360194,-300.0,0.00022581,2]
[343506973,1732697360228,-15730.0,0.00022581,2]
[343506974,1732697360261,-235.02277719,0.00022582,2]
[343506975,1732697360292,-37246.15818318,0.00022582,2]
[343506992,1732697432650,-926.35277982,0.00022655,2]
[343506993,1732697432661,-155.0,0.00023014,2]
[343506994,1732697432671,-155.0,0.00023014,2]
[343506995,1732697432681,-265.0,0.00023014,2]
[343506996,1732697432691,-169.0,0.00023014,2]
[343506997,1732697432700,-161.0,0.00023014,2]
[343506998,1732697432709,-3344.084548,0.00023351,2]
[343506999,1732697432719,-300.0,0.00023388,2]
[343507000,1732697432738,-300.0,0.00023388,2]
[343507002,1732697432749,-8096.6095143,0.00023389,2]
[343507003,1732697432758,-1031.253929,0.00023471,2]
[343507004,1732697432772,-926.35277979,0.00023845,2]
[343507005,1732697432782,-3344.084548,0.00024036,2]
[343507006,1732697432791,-1874.7332,0.00024164,2]
[343507007,1732697432801,-155.0,0.00024164,2]
[343507008,1732697432811,-266.0,0.00024164,2]
[343507009,1732697432820,-3344.084548,0.00024721,2]
[343507010,1732697432830,-159.76,0.0002498,3]
[343507011,1732697432839,-479.31,0.0002498,3]
[343507012,1732697432849,-543.01,0.0002498,10]
[343507013,1732697432858,-954.5,0.0002498,10]
[343507014,1732697432867,-413.15053082,0.00024989,2]
[343507015,1732697432877,-222000.0,0.0002499,2]
[343507016,1732697432887,-926.35277979,0.00025035,2]
[343507017,1732697432896,-420.0,0.00025379,2]
[343507018,1732697432905,-283.835,0.00025438,10]
[343507019,1732697432915,-420.0,0.00025727,2]
[343507020,1732697432924,-265.0,0.00025775,2]
[343507021,1732697432933,-150.0,0.0002618,2]
[343507022,1732697432943,-531.0,0.0002618,2]
[343507023,1732697432953,-2377.0,0.0002618,2]
[343507024,1732697432963,-1104.0,0.0002618,2]
[343507025,1732697432972,-926.35277979,0.00026225,2]
[343507026,1732697432982,-319.52,0.0002635,3]
[343507027,1732697432991,-654.5999923,0.00026384,2]
[343507028,1732697433001,-155.0,0.00026581,2]
[343507029,1732697433011,-337.479308,0.00026921,2]
[343507030,1732697433022,-1841.83890711,0.00027,2]
[343507031,1732697433032,-453.33363131,0.00027297,2]
[343507032,1732697433042,-588.82130182,0.00027297,2]
[343507033,1732697433051,-500.0,0.00027373,2]
[343507034,1732697433061,-344.31383677,0.00027373,2]
[343507035,1732697433071,-500.0,0.00027373,2]
[343507036,1732697433080,-500.0,0.00027373,2]
[343507037,1732697433091,-265.0,0.00027386,2]
[343507038,1732697433101,-406.32331501,0.00027396,2]
[343507039,1732697433111,-390.00789294,0.00027396,2]
[343507040,1732697433120,-233.79004232,0.00027396,2]
[343507041,1732697433129,-500.0,0.00027396,2]
[343507042,1732697433139,-185.47415403,0.00027396,2]
[343507043,1732697433148,-500.0,0.00027396,2]
[343507044,1732697433158,-182.67545124,0.00027396,2]
[343507045,1732697433168,-410.98445663,0.00027396,2]
[343507046,1732697433177,-165.68560384,0.00027396,2]
[343507047,1732697433187,-507.54625772,0.00027397,3]
[343507048,1732697433197,-503.46853389,0.00027397,3]
[343507049,1732697433207,-500.0,0.00027397,3]
[343507050,1732697433217,-500.0,0.00027397,3]
[343507051,1732697433227,-500.0,0.00027397,3]
[343507052,1732697433237,-500.0,0.00027397,3]
[343507053,1732697433246,-500.0,0.00027397,3]
[343507054,1732697433255,-354.35790835,0.00027397,3]
[343507055,1732697433265,-502.36466933,0.00027397,3]
[343507056,1732697433277,-501.94748228,0.00027397,3]
[343507057,1732697433286,-257.49202024,0.00027397,3]
[343507058,1732697433295,-500.0,0.00027397,3]
[343507059,1732697433304,-500.0,0.00027397,3]
[343507060,1732697433313,-500.0,0.00027397,3]
[343507061,1732697433323,-500.0,0.00027397,3]
[343507062,1732697433333,-500.0,0.00027397,3]
[343507063,1732697433342,-500.0,0.00027397,3]
[343507064,1732697433351,-500.0,0.00027397,3]
[343507065,1732697433361,-500.0,0.00027397,3]
[343507066,1732697433372,-500.0,0.00027397,3]
[343507067,1732697433381,-500.0,0.00027397,3]
[343507068,1732697433391,-500.0,0.00027397,3]
[343507069,1732697433401,-500.0,0.00027397,3]
[343507070,1732697433410,-500.0,0.00027397,3]
[343507071,1732697433419,-500.0,0.00027397,3]
[343507072,1732697433429,-353.60345491,0.00027397,3]
[343507073,1732697433438,-502.55865866,0.00027397,3]
[343507074,1732697433448,-501.49579364,0.00027397,3]
[343507075,1732697433457,-508.1720834,0.00027397,3]
[343507076,1732697433467,-502.18405789,0.00027397,3]
[343507077,1732697433476,-502.4210365,0.00027397,3]
[343507078,1732697433486,-500.0,0.00027397,3]
[343507079,1732697433495,-504.14239892,0.00027397,3]
[343507080,1732697433504,-504.79413619,0.00027397,3]
[343507081,1732697433515,-641.10990358,0.00027397,3]
[343507082,1732697433529,-507.90812657,0.00027397,3]
[343507083,1732697433538,-500.0,0.00027397,3]
[343507084,1732697433547,-648.51717595,0.00027397,3]
[343507085,1732697433556,-500.0,0.00027397,3]
[343507086,1732697433567,-500.0,0.00027397,3]
[343507087,1732697433576,-284.98607674,0.00027397,3]
[343507088,1732697433585,-631.320495,0.00027397,3]
[343507089,1732697433595,-527.19356092,0.00027397,3]
[343507090,1732697433604,-500.0,0.00027397,3]
[343507091,1732697433614,-500.0,0.00027397,3]
[343507092,1732697433623,-500.0,0.00027397,3]
[343507093,1732697433632,-500.0,0.00027397,3]
[343507094,1732697433641,-500.0,0.00027397,3]
[343507095,1732697433748,-500.0,0.00027397,3]
[343507096,1732697433758,-500.0,0.00027397,3]
[343507097,1732697433767,-500.0,0.00027397,3]
[343507098,1732697433778,-500.0,0.00027397,3]
[343507099,1732697433787,-500.0,0.00027397,3]
[343507100,1732697433796,-500.0,0.00027397,3]
[343507101,1732697433806,-368.91059027,0.00027397,3]
[343507102,1732697433816,-500.0,0.00027397,3]
[343507103,1732697433825,-500.0,0.00027397,3]
[343507104,1732697433834,-500.0,0.00027397,3]
[343507105,1732697433844,-500.0,0.00027397,3]
[343507106,1732697433853,-500.0,0.00027397,3]
[343507107,1732697433862,-226.64856366,0.00027397,3]
[343507108,1732697433871,-500.0,0.00027397,3]
[343507109,1732697433881,-500.0,0.00027397,3]
[343507110,1732697433891,-500.0,0.00027397,3]
[343507111,1732697433900,-500.0,0.00027397,3]
[343507112,1732697433909,-500.0,0.00027397,3]
[343507113,1732697433919,-500.0,0.00027397,3]
[343507114,1732697433928,-500.0,0.00027397,3]
[343507115,1732697433938,-500.0,0.00027397,3]
[343507116,1732697433948,-500.0,0.00027397,3]
[343507117,1732697433957,-500.0,0.00027397,3]
[343507118,1732697433967,-500.0,0.00027397,3]
[343507119,1732697433976,-500.0,0.00027397,3]
[343507120,1732697433985,-500.0,0.00027397,3]
[343507121,1732697433995,-500.0,0.00027397,3]
[343507122,1732697434005,-500.0,0.00027397,3]
[343507123,1732697434014,-500.0,0.00027397,3]
[343507124,1732697434029,-500.0,0.00027397,3]
[343507125,1732697434040,-500.0,0.00027397,3]